Cogmind - Beta 15 @@@ ROGUE MODE // 2025.05.21 @ 19:53:19 Player: Peawet Result: Destroyed by AL-APK(z) with Zionite Laser-S Performance ------------- Evolutions (1) 500 Regions Visited (5) 1000 Robots Destroyed (52) 260 Value Destroyed (1269) 1269 Prototype IDs (11) 220 Alien Tech Used (0) 0 Bonus (1822) 1822 TOTAL SCORE: 5071 Bonus ------- Follower Combat Kills 222 Met Imprinter 300 Was Imprinted 300 Destroyed Z-Imprinter 1000 Cogmind --------- Core Integrity 0/400 Matter 300/300 Energy 100/100 System Corruption 0% Temperature Warning (353) Movement Core (400) Ox7 Location -7/Deep Caves Parts ------- > --- POWER (1) -------- Zionite Light DM Reactor > --- PROPULSION (4) --- (None) > --- UTILITY (2) ------ Medium Storage Unit > --- WEAPON (2) ------- CR-A16's Pointy Stick > --- INVENTORY (10) --- Light Ion Engine Zionite Light DM Reactor Experimental Heat Sink Zionite Weapon Casing Makeshift Hacking Suite Makeshift System Shield Hacking Drone Bay (1/1) Zionite Laser-S GAL Module Peak State ------------ > --- POWER ------------ Zionite Light DM Reactor > --- PROPULSION ------- Zionite Glidesys I Zionite Glidesys I Zionite Glidesys I > --- UTILITY ---------- Medium Storage Unit Zionite Light Carapace > --- WEAPON ----------- Zionite Laser-S Zionite Phaser-S > --- INVENTORY -------- Light Ion Engine Zionite Light DM Reactor Experimental Heat Sink Zionite Weapon Casing Makeshift Hacking Suite Makeshift System Shield Hacking Drone Bay Mining Laser CR-A16's Pointy Stick GAL Module [Rating: 51] Favorites ----------- Power Heavy Ion Engine Engine Heavy Ion Engine Reactor Zionite Light DM Reactor Propulsion Aluminum Leg Leg Aluminum Leg Hover Unit Zionite Glidesys I Utility Medium Storage Unit Device Hacking Drone Bay Storage Medium Storage Unit Processor Signal Interpreter Protection Light Armor Plating Weapon Improved Assault Rifle Energy Gun Beam Rifle Energy Cannon Beam Cannon Ballistic Gun Improved Assault Rifle Launcher Grenade Launcher Special Weapon Mining Laser Piercing Weapon CR-A16's Pointy Stick Build | -11 -10 -9 -9 -7 -7 ------- Run | Yrd Mat Mat Min Zio Dee Slots Evolved 2 | . . 2 . . . Power . | . . . . . . Propulsion 2 | . . 2 . . . Utility . | . . . . . . Weapon . | . . . . . . Parts Attached 54 | 6 13 16 1 3 15 Power 9 | 1 3 3 1 . 1 Engine 8 | 1 3 3 1 . . Core . | . . . . . . Reactor 1 | . . . . . 1 Propulsion 17 | 2 2 7 . . 6 Treads . | . . . . . . Leg 11 | 2 2 7 . . . Wheel . | . . . . . . Hover 6 | . . . . . 6 Flight . | . . . . . . Utility 11 | 1 4 . . 2 4 Device 4 | . . . . 2 2 Storage 2 | 1 1 . . . . Processor 2 | . 2 . . . . Hackware . | . . . . . . Protection 3 | . 1 . . . 2 Artifact . | . . . . . . Weapon 17 | 2 4 6 . 1 4 Energy Gun 7 | 1 . 3 . . 3 Energy Cannon 1 | . 1 . . . . Ballistic Gun 6 | 1 1 3 . . 1 Ballistic Cannon . | . . . . . . Launcher 1 | . 1 . . . . Special Weapon 1 | . 1 . . . . Impact Weapon . | . . . . . . Slashing Weapon . | . . . . . . Piercing Weapon 1 | . . . . 1 . Special Melee Weapon . | . . . . . . Unidentified Prototypes 11 | . . 2 . 1 8 Parts Lost 20 | . 1 7 . . 12 Power 1 | . . 1 . . . Propulsion 11 | . . 4 . . 7 Utility 3 | . 1 . . . 2 Weapon 5 | . . 2 . . 3 Highest Loss Streak 6 | . 1 3 . . 6 To Critical Strikes . | . . . . . . Average Backups 7 | 1 5 8 9 8 8 Power 1 | . 1 1 1 1 1 Propulsion . | . . . . . . Utility 2 | . . 2 3 3 3 Weapon 3 | . 2 3 4 3 2 Tool/Special . | . . . . . . Unused Backups 10 | . . 1 . 5 4 Power . | . . . . . . Propulsion . | . . . . . . Utility 6 | . . . . 3 3 Weapon 3 | . . 1 . 2 . Tool/Special 1 | . . . . . 1 Average Slot Usage (%) 94 | . 92 92 100 96 91 Engine 11 | . 14 10 11 11 9 Leg 36 | . 28 37 44 44 24 Hover 2 | . . . . . 13 Device 2 | . . . . 3 7 Storage 11 | . 14 11 11 11 11 Processor 6 | . 3 11 11 4 . Energy Gun 2 | . 3 7 . . 2 Energy Cannon 1 | . 9 . . . . Ballistic Gun 16 | . 14 14 22 15 17 Piercing Weapon 2 | . . . . 6 1 Peak Build Rating 51 | 6 7 15 16 27 51 Average Rating 16 | 5 6 10 16 20 29 On Entrance 10 | . 6 7 13 16 21 Naked Turns . | . . . . . . Heaviest Build 32 | 11 19 23 24 32 32 Greatest Support 44 | 20 20 40 40 40 44 Greatest Overweight (x) 7 | 1 . 1 . . 7 Average Overweight (x) . | . . . . . . Largest Inventory Capacity 10 | 8 10 10 10 10 10 Average Capacity 9 | 7 8 10 10 10 10 Most Carried 10 | 2 9 10 10 10 10 Average Carried 8 | 1 5 8 9 9 9 Final Capacity 10 | 8 10 10 10 10 10 Final Carried 10 | 2 9 10 10 10 9 Class Distribution -------------------- 73% | Scavenger-Mutant 26% | Mutant Dominant Class ---------------- Mutant | -10/Materials Scavenger-Mutant | -9/Materials Scavenger-Mutant | -9/Mines Scavenger-Mutant | -7/Zion Scavenger-Mutant | -7/Deep Caves Resources | -11 -10 -9 -9 -7 -7 ----------- Run | Yrd Mat Mat Min Zio Dee Matter Collected 1157 | 272 216 326 71 20 252 Remotely . | . . . . . . Salvage Created 2029 | 134 694 923 123 . 155 Parts 112 | 7 32 57 3 . 13 Haulers Intercepted 3 | . 1 2 . . . Recyclers Shooed 6 | . 3 3 . . . Parts Field Recycled . | . . . . . . Retrieved Matter . | . . . . . . Parts Self-Destructed . | . . . . . . Prevented . | . . . . . . Kills | -11 -10 -9 -9 -7 -7 ------- Run | Yrd Mat Mat Min Zio Dee Combat Hostiles Destroyed 36 | . 12 18 3 . 3 Melee 2 | . . . . . 2 Guns 28 | . 6 18 3 . 1 Cannons 4 | . 4 . . . . AOE 2 | . 2 . . . . Classes Destroyed 9 | 2 4 2 . . 1 Worker 1 | . . 1 . . . Tunneler 4 | 3 1 . . . . Hauler 3 | . 1 2 . . . Recycler 6 | 1 3 1 1 . . Watcher 2 | . 1 1 . . . Swarmer 9 | . 3 3 3 . . Grunt 20 | . 9 11 . . . Sentry 4 | . . 4 . . . Z-Light 3 | . . . . . 3 Best Kill Streak 4 | 4 4 4 3 . 1 Combat Bots Only 4 | . 3 4 3 . 1 Max Kills in Single Turn 2 | 1 2 1 1 . 1 Gunslinging . | . . . . . . Exploded 2 | . 2 . . . . Melee 1 | . . . . . 1 Uniques/NPCs Destroyed 1 | . . . . . 1 Z-Imprinter (-7/Deep Caves) Combat | -11 -10 -9 -9 -7 -7 -------- Run | Yrd Mat Mat Min Zio Dee Hostile Shots Fired 239 | . 57 102 18 . 62 Missed 71 | . 14 27 8 . 22 Hits 168 | . 43 75 10 . 40 Melee 1 | . . 1 . . . Projectile 167 | . 43 74 10 . 40 Damage Taken 2736 | . 517 921 75 . 1223 Core 467 | . 67 99 31 . 270 Absorbed by Shields . | . . . . . . Core Remaining (%) 86 | 100 73 . . . . Volleys Fired 166 | 12 52 77 7 . 18 Largest 2 | 2 2 2 2 . 2 Hottest 120 | 70 100 112 46 . 120 Shots Fired 323 | 24 103 149 14 . 33 Gun 284 | 24 64 149 14 . 33 Cannon 35 | . 35 . . . . Launcher 3 | . 3 . . . . Special 1 | . 1 . . . . Kinetic 204 | 12 51 100 14 . 27 Thermal 114 | 12 49 49 . . 4 Explosive 3 | . 3 . . . . Electromagnetic . | . . . . . . Phasic 2 | . . . . . 2 Robot Hit Streak 18 | 5 17 18 3 . 13 Robot Miss Streak 6 | 3 6 5 4 . 2 Penetration Max . | . . . . . . Secondary Targets 1 | . . 1 . . . Max Gunslinging Chain 1 | . . 1 . . . Shots Hit Robots 217 | 15 65 103 7 . 27 Core Hits 92 | 6 29 44 4 . 9 Critical Kills . | . . . . . . Critical Parts Destroyed . | . . . . . . Critical Strikes 5 | 1 1 3 . . . Burn 5 | 1 1 3 . . . Melee Attacks 4 | . . . . . 4 Impact . | . . . . . . Slashing . | . . . . . . Piercing 4 | . . . . . 4 Sneak Attacks . | . . . . . . Combat Hostiles . | . . . . . . Follow-up Attacks . | . . . . . . Damage Inflicted 3062 | 164 985 1305 132 . 476 Guns 2323 | 164 355 1265 132 . 407 Cannons 474 | . 474 . . . . Explosions 156 | . 156 . . . . Melee 69 | . . . . . 69 Ramming 40 | . . 40 . . . Kinetic 1495 | 54 268 729 132 . 312 Thermal 1236 | 110 561 536 . . 29 Explosive 156 | . 156 . . . . Electromagnetic . | . . . . . . Impact . | . . . . . . Slashing . | . . . . . . Piercing 69 | . . . . . 69 Phasic 66 | . . . . . 66 Highest Corruption . | . . . . . . Average Corruption . | . . . . . . Corruption Purged . | . . . . . . Corruption Blocked . | . . . . . . Overload Shots . | . . . . . . Overflow Damage 4 | . 4 . . . . Projectiles 4 | . 4 . . . . Explosions . | . . . . . . Melee . | . . . . . . Knockbacks . | . . . . . . Impact . | . . . . . . Kinetic . | . . . . . . Secondary . | . . . . . . Self-Inflicted Damage 44 | . 44 . . . . Shots 2 | . 2 . . . . Rammed . | . . . . . . Targets Rammed 7 | . . 7 . . . Kicked 7 | . . 7 . . . Crushed . | . . . . . . Highest Temperature 357 | 90 303 225 . . 357 Average Temperature 90 | 39 101 74 . . 154 Received Heat Transfer 933 | . 201 354 . . 378 Effects 1 | . . 1 . . . Energy Bleed 1 | . . 1 . . . Siege Activations . | . . . . . . Martial Activations . | . . . . . . Shielding Activations . | . . . . . . Robots Disrupted . | . . . . . . Combat Hostiles . | . . . . . . Robots Corrupted . | . . . . . . Combat Hostiles . | . . . . . . Parts Fried . | . . . . . . Impact Corruptions . | . . . . . . Robots Melted . | . . . . . . Combat Hostiles . | . . . . . . Parts Melted 4 | . 2 2 . . . Heat Transferred 3330 | 407 1332 1554 . . 37 Parts Sabotaged . | . . . . . . Parts Stolen . | . . . . . . Parts Stripped . | . . . . . . Power Chain Reactions . | . . . . . . Alert | -11 -10 -9 -9 -7 -7 ------- Run | Yrd Mat Mat Min Zio Dee Maximum Alert Level . | . . . . . . Low Security (%) 100 | 100 100 100 100 . . Level 1 . | . . . . . . Level 2 . | . . . . . . Level 3 . | . . . . . . Level 4 . | . . . . . . Level 5 . | . . . . . . High Security . | . . . . . . Max Security . | . . . . . . Peak Influence 160 | 10 160 139 113 . . Initial 58 | . 3 58 8 . . Average 56 | 1 83 55 40 . . Influence Increases 1002 | 20 359 503 120 . . Destroy 0b10 Robot/C 660 | . 240 360 60 . . Destroy 0b10 Robot/NC 80 | 20 30 25 5 . . Destroy Leader 150 | . 54 86 10 . . Successful Hack 8 | . 8 . . . . Disable Machine 60 | . 15 . 45 . . Destroy Structure 14 | . 12 2 . . . Lose Combat Pursuer 30 | . . 30 . . . Influence Decreases 1002 | 15 225 619 143 . . Entered New Map 98 | . 2 81 15 . . Time Decay 730 | 15 213 374 128 . . Lost Part 70 | . 10 60 . . . Purge Threat 104 | . . 104 . . . Squads Dispatched 6 | . 2 4 . . . Investigation 2 | . 1 1 . . . Extermination . | . . . . . . Reinforcement 4 | . 1 3 . . . Assault . | . . . . . . Garrison . | . . . . . . Intercept . | . . . . . . Searches Triggered . | . . . . . . Construction Impeded . | . . . . . . Haulers Reinforced . | . . . . . . Active Scanning Responses . | . . . . . . Cargo Convoy Interrupts . | . . . . . . Stealth | -11 -10 -9 -9 -7 -7 --------- Run | Yrd Mat Mat Min Zio Dee Distress Signals 5 | . 2 3 . . . Communications Jammed . | . . . . . . Distress Signals . | . . . . . . Times Spotted 71 | . 19 35 3 . 14 Peak Tracking Total 5 | . 5 5 3 . 5 Tactical Retreats 2 | . . 2 . . . Traps | -11 -10 -9 -9 -7 -7 ------- Run | Yrd Mat Mat Min Zio Dee Traps Triggered 2 | . 1 1 . . . Indirectly . | . . . . . . Trap Hack Attempts . | . . . . . . Triggered . | . . . . . . Disarmed . | . . . . . . Reprogrammed . | . . . . . . Reused . | . . . . . . Traps Extracted . | . . . . . . Installed . | . . . . . . Triggered . | . . . . . . Machines | -11 -10 -9 -9 -7 -7 ---------- Run | Yrd Mat Mat Min Zio Dee Machines Disabled 5 | . 1 . 3 . 1 Max in Single Turn 1 | . 1 . 1 . . Machines Repaired . | . . . . . . Machines Dismantled . | . . . . . . Machines Sabotaged . | . . . . . . Overloaded Fab Kills . | . . . . . . Hacking | -11 -10 -9 -9 -7 -7 --------- Run | Yrd Mat Mat Min Zio Dee Machines Accessed 5 | . 2 3 . . . Terminals 2 | . 1 1 . . . Fabricators . | . . . . . . Repair Stations 1 | . 1 . . . . Recycling Units 1 | . . 1 . . . Scanalyzers 1 | . . 1 . . . Garrison Access . | . . . . . . Total Hacks 6 | . 3 3 . . . Successful 3 | . 1 2 . . . Failed 3 | . 2 1 . . . Catastrophic 2 | . 2 . . . . Database Lockouts . | . . . . . . Manual 11 | . . . . 11 . Terminals 3 | . 2 1 . . . Fabricators . | . . . . . . Repair Stations 1 | . 1 . . . . Recycling Units 1 | . . 1 . . . Scanalyzers 1 | . . 1 . . . Garrison Access . | . . . . . . Terminal Hacks 2 | . 1 1 . . . Unreport Threat 1 | . . 1 . . . Recall Reinforcements 1 | . 1 . . . . Fabricator Hacks . | . . . . . . Repair Station Hacks . | . . . . . . Recycling Unit Hacks 1 | . . 1 . . . Process 1 | . . 1 . . . Scanalyzer . | . . . . . . Garrison Access Hacks . | . . . . . . Unauthorized Hacks . | . . . . . . Terminals . | . . . . . . Fabricators . | . . . . . . Repair Stations . | . . . . . . Recycling Units . | . . . . . . Scanalyzers . | . . . . . . Garrison Access . | . . . . . . Data Cores Recovered . | . . . . . . Used . | . . . . . . Hacking Detections 4 | . 2 2 . . . Full Trace Events 1 | . 1 . . . . Feedback Events . | . . . . . . Feedback Blocked . | . . . . . . Robot Schematics Acquired . | . . . . . . Robots Built . | . . . . . . Authchips . | . . . . . . Time . | . . . . . . Total Robot Build Rating . | . . . . . . Part Schematics Acquired . | . . . . . . Parts Built . | . . . . . . Authchips . | . . . . . . Time . | . . . . . . Total Part Build Rating . | . . . . . . Parts Repaired . | . . . . . . Time . | . . . . . . Parts Recycled . | . . . . . . Recycled Matter 147 | . . 147 . . . Retrieved Matter . | . . . . . . Retrieved Components . | . . . . . . Parts Scanalyzed . | . . . . . . Part Schematics Acquired . | . . . . . . Parts Damaged . | . . . . . . Bothacking | -11 -10 -9 -9 -7 -7 ------------ Run | Yrd Mat Mat Min Zio Dee Used RIF Installer . | . . . . . . Robots Hacked . | . . . . . . Non-combat . | . . . . . . Combat . | . . . . . . Robot Hacks Applied . | . . . . . . Relay Couplers Released . | . . . . . . Fabnet Peak Effective % . | . . . . . . Robots Rewired . | . . . . . . Allies Hacked . | . . . . . . Hacks Repelled . | . . . . . . Allies | -11 -10 -9 -9 -7 -7 -------- Run | Yrd Mat Mat Min Zio Dee Total Allies 8 | . . . . 8 . Largest Group 8 | . . . . 8 7 Highest-Rated Group 375 | . . . . 375 339 Highest-Rated Ally 96 | . . . . 96 96 Total Orders . | . . . . . . Ally Attacks 45 | . . . . . 45 Total Damage 1687 | . . . . . 1687 Kills 15 | . . . . . 15 Allies Corrupted . | . . . . . . Allies Melted . | . . . . . . Intel | -11 -10 -9 -9 -7 -7 ------- Run | Yrd Mat Mat Min Zio Dee Active Infowar (turns) 276 | . . . . 2 274 ECM 276 | . . . . 2 274 Robot Analysis Total . | . . . . . . Derelict Logs Recovered 3 | . . . 1 2 . Drone Launches . | . . . . . . Drone Recoveries . | . . . . . . Exploration | -11 -10 -9 -9 -7 -7 ------------- Run | Yrd Mat Mat Min Zio Dee Turns Passed 3858 | 93 499 1058 378 1244 586 Spaces Moved 2457 | 46 242 451 295 939 484 Core 15 | 12 . . . . 3 Treads . | . . . . . . Legs 2181 | 34 242 451 295 939 220 Wheels . | . . . . . . Hover 261 | . . . . . 261 Flight . | . . . . . . Fastest Speed 50 | 50 120 120 120 120 52 Average Speed 115 | 107 120 129 120 120 91 Slowest Speed 400 | 120 120 190 120 120 400 Overloaded Moves . | . . . . . . Propulsion Burnouts . | . . . . . . Robots Hopped . | . . . . . . Potential Cave-ins . | . . . . . . Cave-ins Triggered . | . . . . . . Exploration Rate (%) 47 | 4 31 30 75 91 55 Regions Visited 5 Branch Regions 3 Pre-discovered Areas 2 | . . . 1 1 . Known Exits Taken 3 | . 1 1 1 . . Unknown Exits Taken 2 | 1 . . . 1 . Scrap Searched 6 | . . . 1 5 . Spaces Dug . | . . . . . . Terrain Destroyed 13 | . 11 . . . 2 Melee . | . . . . . . Projectile 2 | . . . . . 2 AOE 11 | . 11 . . . . Terrain Rammed . | . . . . . . Walls Destroyed . | . . . . . . Machines Disabled . | . . . . . . Actions | -11 -10 -9 -9 -7 -7 --------- Run | Yrd Mat Mat Min Zio Dee Total 3145 | 65 349 784 305 1057 585 Wait 396 | . 33 211 2 105 45 Move 2452 | 45 241 450 294 938 484 Hop . | . . . . . . Pick Up 26 | 2 5 9 1 5 4 Fast Attach 22 | 6 4 5 . 1 6 Attach 10 | . 1 4 1 . 4 Detach 3 | . . . . . 3 Swap 35 | . 11 10 . 2 12 Drop 24 | . 2 11 . 6 5 Fire 166 | 12 52 77 7 . 18 Melee 4 | . . . . . 4 Ram . | . . . . . . Kick 7 | . . 7 . . . Crush . | . . . . . . Escape Stasis . | . . . . . . Rewire . | . . . . . . Trap . | . . . . . . Miscellaneous . | . . . . . . Route ------- -11/Scrapyard -10/Materials -9/Materials (discovered 2 exits: *Min / *Sto) -9/Mines (discovered 3 exits: *Mat x2 / *Zio) -7/Zion (discovered 2 exits: [*Dee] / *Pro) -7/Deep Caves History --------- Turn | Location | Event 15 | -11/Scrapyard | Discovered new exit (range 14) 94 | -11/Scrapyard | Entered Materials 259 | -10/Materials | Discovered new exit (range 14) 310 | -10/Materials | Build established: Mutant 590 | -10/Materials | Identified exit to Materials 593 | -10/Materials | Entered another Materials area 593 | -9/Materials | Evolved 2 slots: Propulsion x2 936 | -9/Materials | Discovered new exit (range 13) 983 | -9/Materials | Identified exit to Storage 1180 | -9/Materials | Build established: Scavenger-Mutant 1325 | -9/Materials | Lost 3 parts (2n1w) 1365 | -9/Materials | Discovered new exit (range 10) 1382 | -9/Materials | Identified exit to Mines 1651 | -9/Materials | Entered Mines 1762 | -9/Mines | Discovered new exit (range 7) 1771 | -9/Mines | Identified exit to Materials 1993 | -9/Mines | Learned location of Zion (-7) 1993 | -9/Mines | Discovered exit to Materials (range 15) 1994 | -9/Mines | A Derelict revealed a hidden shortcut to a safe place 1994 | -9/Mines | Met a Derelict testing a Signal Generator 2004 | -9/Mines | Found Signal Generator 2024 | -9/Mines | Identified exit to Zion 2029 | -9/Mines | Entered Zion 2097 | -7/Zion | Found GAL Module 2182 | -7/Zion | Discovered new exit (range 13) 2197 | -7/Zion | Identified exit to Proximity Caves 2308 | -7/Zion | Given A8's code to call for help 2338 | -7/Zion | Learned Factory recycling unit intel 2357 | -7/Zion | Gained Derelict followers 2359 | -7/Zion | Learned location of Warlord (-4) 2543 | -7/Zion | Learned Factory interactive machine intel 2563 | -7/Zion | Found CR-A16's Pointy Stick 2582 | -7/Zion | Learned Factory non-interactive machine intel 2628 | -7/Zion | Met Imprinter 2646 | -7/Zion | Imprinted 2648 | -7/Zion | Declared Zion's savior 2840 | -7/Zion | Acquired unknown access codes intercepted by a Zionite 2899 | -7/Zion | Given the Hacking Drone Bay 2899 | -7/Zion | Found Prototype Device 2899 | -7/Zion | Identified Hacking Drone Bay 3134 | -7/Zion | Enhanced Grunt warped into view, answering call for help 3139 | -7/Zion | Enhanced Grunt warped into view, answering call for help 3186 | -7/Zion | Opened final containment barrier to the Deep Caves 3208 | -7/Zion | Discovered new exit (range 3) 3208 | -7/Zion | Saw the warning signs outside the Deep Caves entrance 3273 | -7/Zion | Entered Deep Caves 3273 | -7/Deep Caves | Accompanied by 8 allies 3510 | -7/Deep Caves | Attacked by Z-Imprinter 3523 | -7/Deep Caves | Allies destroyed Z-Imprinter 3547 | -7/Deep Caves | Found Prototype Protection 3547 | -7/Deep Caves | Identified Zio. Weapon Casing 3615 | -7/Deep Caves | Z-Facility disabled 3694 | -7/Deep Caves | Core integrity fell below 50% 3758 | -7/Deep Caves | Lost 6 parts (4n1u1w) 3853 | -7/Deep Caves | Core integrity fell below 20% 3859 | -7/Deep Caves | Destroyed by AL-APK(z) with Zionite Laser-S Last Messages --------------- 03778_ Dropped Imp. Assault Rifle. 03778_ Acquired Zio. Laser-S. 03781_ Acquired 52 matter. 03782_ Dropped Datajack. 03783_ Acquired Exp. Heat Sink. 03822_ Acquired 28 matter. 03826_ Acquired Zio. Light DM Reactor. 03828_ Acquired Prototype Energy Gun. 03828_ Identified Zio. Phaser-S. 03829_ Dropped Mining Laser. 03830_ Acquired Zio. Laser-S. 03840_ Destroyed Prototype Storage. 03841_ Zio. Phaser-S destroyed. 03843_ Zio. Glidesys I destroyed. 03844_ Zio. Laser-S destroyed. 03848_ Zio. Glidesys I destroyed. 03850_ Zio. Light Carapace destroyed. 03851_ U3-IQZ(z) destroyed. 03854_ Zio. Glidesys I destroyed. [Achievement: Achiever] Map ----- +----------------------------------------------------+ | | | | | | | | | | | | | | | | | | | | | | | | | | | | | | | | | | | | | | | | | | | ???????##############???####?????????????????????? | | ???????# ![!!!*!!#???# =#?#??###############??? | | ???????# #??## |# #### ##?? | | ???????# ### "#"####?#!!=;## #?? | | ??????## ######""""""####@=## ### | | ????### ####" [ !!"#;[!# # | | ????# " * %!% !;;z z | | ????# %!!%! != ! | | ????## * ! !!] ]% | | ?????### !*! = | | ???????## / | | ???????# " """""" | | ????#### " """"""""""" | | ???## # """""""""""""" | | ???# """""""""""" | | ???#!!# " """"""""" | | ???##### """""""""""""" | | ??????## """""""""""""" | | ??????# """""""""""""" | | ??????## """"""""""""" | | ????#### """"""""" " | | ???## # """""""""%!%/ | | ???# """""""" * * | | ???# """""""""%= | | ???# """""""""! | | ???## """"""""""" | | ????### """""""""""""% | | ??????# """""" * | | ??????## """""" """ | +----------------------------------------------------+ Best States ------------- Heat Dissipation 28 Energy Generation 27 Energy Capacity 280 Matter Stores 300 Matter Capacity 300 Sight Range 16 Terrain Scan Density 10 ECM Strength 2 Armor Coverage 400 Phase Shifting 15 Evasion (%) 55 Targeting Accuracy 5 Item Schematics ----------------- None Robot Schematics ------------------ None Fabricated ------------ Nothing Repaired ---------- Nothing Alien Tech Used ----------------- None Achievements -------------- Achiever Are We The Baddies? Help From High Places Signs Are For Wimps Challenges ------------ None Game ------ Seed GreatStrikeDrillbomb Manual? 0 Play Time 00:36:16 Cumulative 17.2 hours Start 2025.05.20 @ 19:42:54 End 2025.05.21 @ 19:53:19 Sessions 2 Manual Loads 0 Difficulty Rogue Special Mode None Game No. 32 Rogue 32 Adventurer 0 Explorer 0 Win Type - Total 0 Types 0/0/0/0/0/0/0/0/0/0 Lore% 18 Gallery% 26 Achievement% 25 Wizard Run 0 Options --------- Layout 0 ASCII 0 Keyboard 0 Movement Mouse Keybinds 0 Fullscreen 1 Font 18/SmallcapsGlow Map View 38x25 Zoom Use 95% Tactical HUD 1 Map Filters NONE Filters NONE Steam 1 RUN: 69ee631e-d466-458b-9b96-41fc6fe89c60